[Event "Titled Tuesday Blitz January 18 2022"]
[White "Jocev, Milan"]
[Black "Leiva, Gianmarco"]
[WhiteFideId "900680"]
[BlackFideId "3804399"]
[WhiteElo "2322"]
[BlackElo "2328"]
[Result "1/2-1/2"]
[Round "04"]
[TimeControl "180+1"]
[Date "2022.01.18"]
[WhiteClock "0:00:12"]
[BlackClock "0:00:04"]

1. Nf3 {[%clk 0:03:00]}  Nf6 {[%clk 0:02:44]} 2. g3 {[%clk 0:03:00]}  d5 {[%clk 0:02:42]} 3. Bg2 {[%clk 0:03:00]}  e6 {[%clk 0:02:42]} 4. O-O {[%clk 0:03:00]}  Be7 {[%clk 0:02:43]} 5. d4 {[%clk 0:03:00]}  O-O {[%clk 0:02:42]} 6. c4 {[%clk 0:03:01]}  c6 {[%clk 0:02:42]} 7. Nbd2 {[%clk 0:02:57]}  Nbd7 {[%clk 0:02:40]} 8. b3 {[%clk 0:02:56]}  b5 {[%clk 0:02:39]} 9. Bb2 {[%clk 0:02:54]}  a5 {[%clk 0:02:36]} 10. Qc2 {[%clk 0:02:42]}  a4 {[%clk 0:02:36]} 11. c5 {[%clk 0:02:35]}  b4 {[%clk 0:02:22]} 12. bxa4 {[%clk 0:02:30]}  Ba6 {[%clk 0:02:21]} 13. Rfe1 {[%clk 0:02:27]}  Qa5 {[%clk 0:02:18]} 14. a3 {[%clk 0:02:23]}  bxa3 {[%clk 0:02:10]} 15. Bc3 {[%clk 0:02:21]}  Qc7 {[%clk 0:02:06]} 16. Rxa3 {[%clk 0:02:20]}  Rfb8 {[%clk 0:01:59]} 17. e3 {[%clk 0:02:14]}  Ng4 {[%clk 0:01:28]} 18. Rb1 {[%clk 0:02:08]}  f5 {[%clk 0:01:25]} 19. Rxb8+ {[%clk 0:02:02]}  Qxb8 {[%clk 0:01:25]} 20. Qb2 {[%clk 0:01:54]}  Qa7 {[%clk 0:01:12]} 21. Rb3 {[%clk 0:01:52]}  Bd8 {[%clk 0:01:12]} 22. h3 {[%clk 0:01:49]}  Ngf6 {[%clk 0:01:12]} 23. Ng5 {[%clk 0:01:47]}  Nf8 {[%clk 0:01:11]} 24. h4 {[%clk 0:01:41]}  Bc7 {[%clk 0:01:10]} 25. Nh3 {[%clk 0:01:29]}  Kf7 {[%clk 0:01:02]} 26. Nf4 {[%clk 0:01:29]}  h6 {[%clk 0:00:56]} 27. a5 {[%clk 0:01:16]}  g5 {[%clk 0:00:56]} 28. hxg5 {[%clk 0:01:16]}  hxg5 {[%clk 0:00:56]} 29. Nh3 {[%clk 0:01:12]}  g4 {[%clk 0:00:57]} 30. Nf4 {[%clk 0:01:12]}  Bb5 {[%clk 0:00:52]} 31. Bf1 {[%clk 0:01:06]}  Bxf1 {[%clk 0:00:52]} 32. Nxf1 {[%clk 0:01:03]}  Bxf4 {[%clk 0:00:51]} 33. Rb7+ {[%clk 0:00:57]}  Bc7 {[%clk 0:00:51]} 34. Rxa7 {[%clk 0:00:56]}  Rxa7 {[%clk 0:00:51]} 35. Nd2 {[%clk 0:00:49]}  N8d7 {[%clk 0:00:52]} 36. Kg2 {[%clk 0:00:46]}  Ke7 {[%clk 0:00:52]} 37. f3 {[%clk 0:00:28]}  Bxa5 {[%clk 0:00:37]} 38. Bxa5 {[%clk 0:00:19]}  Rxa5 {[%clk 0:00:38]} 39. e4 {[%clk 0:00:18]}  gxf3+ {[%clk 0:00:37]} 40. Nxf3 {[%clk 0:00:18]}  Nxe4 {[%clk 0:00:38]} 41. Qc1 {[%clk 0:00:17]}  Ra2+ {[%clk 0:00:38]} 42. Kh3 {[%clk 0:00:17]}  Rf2 {[%clk 0:00:25]} 43. Ne5 {[%clk 0:00:14]}  Nxe5 {[%clk 0:00:19]} 44. dxe5 {[%clk 0:00:15]}  Rf3 {[%clk 0:00:15]} 45. Qh6 {[%clk 0:00:13]}  Rxg3+ {[%clk 0:00:08]} 46. Kh2 {[%clk 0:00:14]}  Rg4 {[%clk 0:00:03]} 47. Qh7+ {[%clk 0:00:12]}  Kd8 {[%clk 0:00:02]} 48. Qh8+ {[%clk 0:00:11]}  Kc7 {[%clk 0:00:02]} 49. Qf8 {[%clk 0:00:09]}  Rh4+ {[%clk 0:00:02]} 50. Kg2 {[%clk 0:00:09]}  Rg4+ {[%clk 0:00:02]} 51. Kf3 {[%clk 0:00:09]}  Rg3+ {[%clk 0:00:03]} 52. Ke2 {[%clk 0:00:09]}  Rg2+ {[%clk 0:00:03]} 53. Kf1 {[%clk 0:00:09]}  Rf2+ {[%clk 0:00:03]} 54. Ke1 {[%clk 0:00:10]}  Ra2 {[%clk 0:00:03]} 55. Qe7+ {[%clk 0:00:10]}  Kb8 {[%clk 0:00:03]} 56. Qxe6 {[%clk 0:00:11]}  f4 {[%clk 0:00:03]} 57. Qxc6 {[%clk 0:00:10]}  f3 {[%clk 0:00:03]} 58. Qb6+ {[%clk 0:00:08]}  Ka8 {[%clk 0:00:03]} 59. Qc6+ {[%clk 0:00:08]}  Ka7 {[%clk 0:00:04]} 60. Qb6+ {[%clk 0:00:08]}  Ka8 {[%clk 0:00:04]} 61. Qd8+ {[%clk 0:00:08]}  Ka7 {[%clk 0:00:05]} 62. Qd7+ {[%clk 0:00:09]}  Ka6 {[%clk 0:00:04]} 63. Qc6+ {[%clk 0:00:09]}  Ka5 {[%clk 0:00:04]} 64. Qb6+ {[%clk 0:00:09]}  Ka4 {[%clk 0:00:04]} 65. Qa6+ {[%clk 0:00:10]}  Kb3 {[%clk 0:00:05]} 66. Qd3+ {[%clk 0:00:10]}  Kb4 {[%clk 0:00:05]} 67. Qd4+ {[%clk 0:00:09]}  Kb5 {[%clk 0:00:04]} 68. Qd3+ {[%clk 0:00:10]}  Kxc5 {[%clk 0:00:03]} 69. Qxf3 {[%clk 0:00:10]}  Ra1+ {[%clk 0:00:03]} 70. Ke2 {[%clk 0:00:10]}  Ra2+ {[%clk 0:00:04]} 71. Ke1 {[%clk 0:00:11]}  Ra1+ {[%clk 0:00:04]} 72. Ke2 {[%clk 0:00:11]}  Ra2+ {[%clk 0:00:04]} 73. Ke1 {[%clk 0:00:12]} 1/2-1/2


[Site "https://www.chess.com"]

[Event "Titled Tuesday Blitz January 18 2022"]
[White "Kamsky, Gata"]
[Black "Vlassov, Nikolai"]
[WhiteFideId "2000024"]
[BlackFideId "4103360"]
[WhiteElo "2645"]
[BlackElo "2407"]
[Result "1/2-1/2"]
[Round "04"]
[TimeControl "180+1"]
[Date "2022.01.18"]
[WhiteClock "0:00:16"]
[BlackClock "0:00:08"]

1. d4 {[%clk 0:03:00]}  Nf6 {[%clk 0:02:59]} 2. Nf3 {[%clk 0:02:56]}  e6 {[%clk 0:02:58]} 3. Bf4 {[%clk 0:02:55]}  d5 {[%clk 0:02:57]} 4. e3 {[%clk 0:02:55]}  Bd6 {[%clk 0:02:57]} 5. Bxd6 {[%clk 0:02:53]}  cxd6 {[%clk 0:02:56]} 6. c4 {[%clk 0:02:53]}  dxc4 {[%clk 0:02:56]} 7. Bxc4 {[%clk 0:02:52]}  O-O {[%clk 0:02:56]} 8. Nc3 {[%clk 0:02:52]}  a6 {[%clk 0:02:55]} 9. a3 {[%clk 0:02:50]}  b5 {[%clk 0:02:55]} 10. Bd3 {[%clk 0:02:51]}  Bb7 {[%clk 0:02:55]} 11. O-O {[%clk 0:02:49]}  Nbd7 {[%clk 0:02:54]} 12. e4 {[%clk 0:02:49]}  e5 {[%clk 0:02:53]} 13. d5 {[%clk 0:02:44]}  Nb6 {[%clk 0:02:40]} 14. Nd2 {[%clk 0:02:39]}  Bc8 {[%clk 0:02:38]} 15. b4 {[%clk 0:02:35]}  Bg4 {[%clk 0:02:37]} 16. f3 {[%clk 0:02:33]}  Bd7 {[%clk 0:02:36]} 17. Nb3 {[%clk 0:02:31]}  Nh5 {[%clk 0:02:35]} 18. g3 {[%clk 0:02:09]}  Rc8 {[%clk 0:02:32]} 19. Rc1 {[%clk 0:02:08]}  Nc4 {[%clk 0:02:30]} 20. Bxc4 {[%clk 0:01:55]}  Rxc4 {[%clk 0:02:27]} 21. Na5 {[%clk 0:01:46]}  Qb6+ {[%clk 0:02:19]} 22. Kg2 {[%clk 0:01:44]}  Rc7 {[%clk 0:02:18]} 23. Qd2 {[%clk 0:01:42]}  Rfc8 {[%clk 0:02:13]} 24. Ne2 {[%clk 0:01:36]}  h6 {[%clk 0:01:47]} 25. Rxc7 {[%clk 0:01:33]}  Rxc7 {[%clk 0:01:48]} 26. Rc1 {[%clk 0:01:33]}  Nf6 {[%clk 0:01:47]} 27. Rxc7 {[%clk 0:01:30]}  Qxc7 {[%clk 0:01:47]} 28. Qc3 {[%clk 0:01:28]}  Qxc3 {[%clk 0:01:46]} 29. Nxc3 {[%clk 0:01:28]}  Kf8 {[%clk 0:01:46]} 30. Nc6 {[%clk 0:01:17]}  Ke8 {[%clk 0:01:31]} 31. h4 {[%clk 0:01:07]}  g5 {[%clk 0:01:24]} 32. hxg5 {[%clk 0:01:05]}  hxg5 {[%clk 0:01:25]} 33. Na5 {[%clk 0:01:00]}  Kd8 {[%clk 0:01:18]} 34. Nb3 {[%clk 0:00:59]}  Kc7 {[%clk 0:01:16]} 35. Nd2 {[%clk 0:00:58]}  Ng8 {[%clk 0:01:09]} 36. f4 {[%clk 0:00:44]}  gxf4 {[%clk 0:01:06]} 37. gxf4 {[%clk 0:00:45]}  exf4 {[%clk 0:01:02]} 38. Kf3 {[%clk 0:00:45]}  f5 {[%clk 0:01:02]} 39. Kxf4 {[%clk 0:00:43]}  fxe4 {[%clk 0:01:02]} 40. Ndxe4 {[%clk 0:00:42]}  Ne7 {[%clk 0:01:00]} 41. Ng5 {[%clk 0:00:33]}  Ng6+ {[%clk 0:00:59]} 42. Ke4 {[%clk 0:00:32]}  Ne5 {[%clk 0:00:59]} 43. Kd4 {[%clk 0:00:31]}  Bf5 {[%clk 0:00:47]} 44. a4 {[%clk 0:00:30]}  bxa4 {[%clk 0:00:42]} 45. Nxa4 {[%clk 0:00:31]}  Nd3 {[%clk 0:00:37]} 46. Kc4 {[%clk 0:00:25]}  Ne5+ {[%clk 0:00:36]} 47. Kc3 {[%clk 0:00:24]}  Bd7 {[%clk 0:00:34]} 48. Nb2 {[%clk 0:00:23]}  Ng4 {[%clk 0:00:30]} 49. Kd4 {[%clk 0:00:22]}  Nf6 {[%clk 0:00:25]} 50. Nd1 {[%clk 0:00:19]}  Ne8 {[%clk 0:00:19]} 51. Ne3 {[%clk 0:00:18]}  Kb6 {[%clk 0:00:19]} 52. Nc4+ {[%clk 0:00:17]}  Kb5 {[%clk 0:00:20]} 53. Kc3 {[%clk 0:00:18]}  Bg4 {[%clk 0:00:16]} 54. Nf7 {[%clk 0:00:17]}  Bf3 {[%clk 0:00:07]} 55. Nfxd6+ {[%clk 0:00:17]}  Nxd6 {[%clk 0:00:07]} 56. Nxd6+ {[%clk 0:00:17]}  Ka4 {[%clk 0:00:07]} 57. Kc4 {[%clk 0:00:16]}  Bxd5+ {[%clk 0:00:06]} 58. Kxd5 {[%clk 0:00:15]}  Kxb4 {[%clk 0:00:07]} 59. Nc4 {[%clk 0:00:15]}  a5 {[%clk 0:00:08]} 60. Nxa5 {[%clk 0:00:16]} 1/2-1/2


[Site "https://www.chess.com"]

[Event "Titled Tuesday Blitz January 18 2022"]
[White "Karas, Marek"]
[Black "Sorensen, Hampus"]
[WhiteFideId "14928558"]
[BlackFideId "8703884"]
[WhiteElo "2270"]
[BlackElo "2262"]
[Result "1-0"]
[Round "04"]
[TimeControl "180+1"]
[Date "2022.01.18"]
[WhiteClock "0:00:06"]
[BlackClock "0:00:01"]

1. d4 {[%clk 0:03:00]}  d5 {[%clk 0:02:58]} 2. Nf3 {[%clk 0:02:59]}  Nf6 {[%clk 0:02:57]} 3. c4 {[%clk 0:02:58]}  c6 {[%clk 0:02:57]} 4. Nc3 {[%clk 0:02:58]}  e6 {[%clk 0:02:56]} 5. g3 {[%clk 0:02:58]}  dxc4 {[%clk 0:02:56]} 6. Bg2 {[%clk 0:02:58]}  b5 {[%clk 0:02:56]} 7. O-O {[%clk 0:02:58]}  Bb7 {[%clk 0:02:56]} 8. e4 {[%clk 0:02:58]}  Be7 {[%clk 0:02:48]} 9. e5 {[%clk 0:02:48]}  Nd5 {[%clk 0:02:48]} 10. Ne4 {[%clk 0:02:48]}  h6 {[%clk 0:02:48]} 11. a4 {[%clk 0:02:46]}  O-O {[%clk 0:02:27]} 12. h4 {[%clk 0:02:42]}  Nd7 {[%clk 0:02:19]} 13. Nh2 {[%clk 0:02:40]}  a6 {[%clk 0:02:18]} 14. Qh5 {[%clk 0:02:37]}  f5 {[%clk 0:02:02]} 15. exf6 {[%clk 0:02:31]}  N7xf6 {[%clk 0:02:02]} 16. Nxf6+ {[%clk 0:02:26]}  Bxf6 {[%clk 0:02:01]} 17. Rd1 {[%clk 0:02:10]}  Qe8 {[%clk 0:01:55]} 18. Qg4 {[%clk 0:02:00]}  e5 {[%clk 0:01:48]} 19. dxe5 {[%clk 0:01:57]}  Qxe5 {[%clk 0:01:45]} 20. Bxh6 {[%clk 0:01:48]}  Bc8 {[%clk 0:01:38]} 21. Qg6 {[%clk 0:01:22]}  Bf5 {[%clk 0:01:36]} 22. Qh5 {[%clk 0:01:17]}  Bc2 {[%clk 0:01:09]} 23. Rxd5 {[%clk 0:01:05]}  Qxh5 {[%clk 0:00:29]} 24. Rxh5 {[%clk 0:01:06]}  gxh6 {[%clk 0:00:29]} 25. Bxc6 {[%clk 0:00:57]}  Rab8 {[%clk 0:00:21]} 26. Ng4 {[%clk 0:00:51]}  Bxb2 {[%clk 0:00:18]} 27. Re1 {[%clk 0:00:45]}  Bg7 {[%clk 0:00:15]} 28. axb5 {[%clk 0:00:42]}  axb5 {[%clk 0:00:14]} 29. Bxb5 {[%clk 0:00:38]}  Bb3 {[%clk 0:00:13]} 30. Rc5 {[%clk 0:00:30]}  Rfc8 {[%clk 0:00:11]} 31. Rxc8+ {[%clk 0:00:20]}  Rxc8 {[%clk 0:00:12]} 32. Ne3 {[%clk 0:00:14]}  c3 {[%clk 0:00:11]} 33. Bd3 {[%clk 0:00:12]}  c2 {[%clk 0:00:07]} 34. Nxc2 {[%clk 0:00:12]}  Bxc2 {[%clk 0:00:06]} 35. Rc1 {[%clk 0:00:11]}  Bxd3 {[%clk 0:00:04]} 36. Rxc8+ {[%clk 0:00:11]}  Kh7 {[%clk 0:00:04]} 37. Rc7 {[%clk 0:00:11]}  h5 {[%clk 0:00:04]} 38. Rc5 {[%clk 0:00:11]}  Be2 {[%clk 0:00:03]} 39. Rd5 {[%clk 0:00:10]}  Bf3 {[%clk 0:00:03]} 40. Rf5 {[%clk 0:00:10]}  Bg4 {[%clk 0:00:03]} 41. Rf4 {[%clk 0:00:09]}  Kg6 {[%clk 0:00:03]} 42. f3 {[%clk 0:00:08]}  Be6 {[%clk 0:00:03]} 43. Kg2 {[%clk 0:00:08]}  Be5 {[%clk 0:00:02]} 44. Re4 {[%clk 0:00:08]}  Kf5 {[%clk 0:00:02]} 45. Re2 {[%clk 0:00:08]}  Bd5 {[%clk 0:00:02]} 46. Rd2 {[%clk 0:00:08]}  Bc6 {[%clk 0:00:02]} 47. Rc2 {[%clk 0:00:08]}  Bb7 {[%clk 0:00:03]} 48. Ra2 {[%clk 0:00:07]}  Bc6 {[%clk 0:00:03]} 49. Ra3 {[%clk 0:00:07]}  Bb7 {[%clk 0:00:03]} 50. Ra5 {[%clk 0:00:07]}  Bc6 {[%clk 0:00:03]} 51. Kf2 {[%clk 0:00:07]}  Kf6 {[%clk 0:00:03]} 52. Ke3 {[%clk 0:00:07]}  Bxg3 {[%clk 0:00:02]} 53. Ra6 {[%clk 0:00:07]}  Bxh4 {[%clk 0:00:01]} 54. Rxc6+ {[%clk 0:00:07]}  Kg7 {[%clk 0:00:02]} 55. Ke4 {[%clk 0:00:07]}  Bf2 {[%clk 0:00:01]} 56. Kf5 {[%clk 0:00:06]} 1-0


[Site "https://www.chess.com"]

[Event "Titled Tuesday Blitz January 18 2022"]
[White "Kavyev, Ruslan"]
[Black "Martin Duque, Jesus"]
[WhiteFideId "34110981"]
[BlackFideId "2208954"]
[WhiteElo "2182"]
[BlackElo "2243"]
[Result "1-0"]
[Round "04"]
[TimeControl "180+1"]
[Date "2022.01.18"]
[WhiteClock "0:02:26"]
[BlackClock "0:01:49"]

1. e4 {[%clk 0:03:00]}  c5 {[%clk 0:02:59]} 2. Nf3 {[%clk 0:02:59]}  b6 {[%clk 0:03:00]} 3. d4 {[%clk 0:02:59]}  cxd4 {[%clk 0:03:00]} 4. Nxd4 {[%clk 0:03:00]}  Bb7 {[%clk 0:03:01]} 5. Nc3 {[%clk 0:03:01]}  a6 {[%clk 0:03:01]} 6. g3 {[%clk 0:02:58]}  e6 {[%clk 0:03:01]} 7. Bg2 {[%clk 0:02:59]}  Qc7 {[%clk 0:03:01]} 8. O-O {[%clk 0:02:59]}  h5 {[%clk 0:03:00]} 9. Re1 {[%clk 0:02:55]}  h4 {[%clk 0:02:59]} 10. Bg5 {[%clk 0:02:50]}  hxg3 {[%clk 0:02:56]} 11. hxg3 {[%clk 0:02:50]}  Be7 {[%clk 0:02:52]} 12. Qd2 {[%clk 0:02:48]}  Rh5 {[%clk 0:02:31]} 13. Nd5 {[%clk 0:02:30]}  exd5 {[%clk 0:02:15]} 14. exd5 {[%clk 0:02:31]}  Kf8 {[%clk 0:02:11]} 15. Bxe7+ {[%clk 0:02:28]}  Nxe7 {[%clk 0:02:11]} 16. Qe2 {[%clk 0:02:28]}  g6 {[%clk 0:01:50]} 17. Qxe7+ {[%clk 0:02:26]}  Kg7 {[%clk 0:01:51]} 18. Ne6+ {[%clk 0:02:25]}  dxe6 {[%clk 0:01:49]} 19. Qxc7 {[%clk 0:02:26]} 1-0


[Site "https://www.chess.com"]

[Event "Titled Tuesday Blitz January 18 2022"]
[White "Klenburg, Michael"]
[Black "Seo, Jung Min"]
[WhiteFideId "14102072"]
[BlackFideId "1734687"]
[WhiteElo "2359"]
[BlackElo "2401"]
[Result "1/2-1/2"]
[Round "04"]
[TimeControl "180+1"]
[Date "2022.01.18"]
[WhiteClock "0:00:07"]
[BlackClock "0:00:05"]

1. g3 {[%clk 0:02:59]}  Nf6 {[%clk 0:02:59]} 2. Bg2 {[%clk 0:02:59]}  e5 {[%clk 0:02:59]} 3. d3 {[%clk 0:02:59]}  d5 {[%clk 0:02:58]} 4. Nf3 {[%clk 0:02:59]}  Bd6 {[%clk 0:02:54]} 5. O-O {[%clk 0:02:58]}  h6 {[%clk 0:02:52]} 6. c4 {[%clk 0:02:58]}  dxc4 {[%clk 0:02:44]} 7. dxc4 {[%clk 0:02:58]}  e4 {[%clk 0:02:44]} 8. Nd4 {[%clk 0:02:55]}  O-O {[%clk 0:02:42]} 9. Nc3 {[%clk 0:02:54]}  Re8 {[%clk 0:02:42]} 10. Ndb5 {[%clk 0:02:51]}  Bf5 {[%clk 0:02:06]} 11. Nxd6 {[%clk 0:02:43]}  cxd6 {[%clk 0:02:05]} 12. Bf4 {[%clk 0:02:43]}  Re6 {[%clk 0:02:05]} 13. Nb5 {[%clk 0:02:39]}  Nc6 {[%clk 0:01:53]} 14. Nxd6 {[%clk 0:02:34]}  Bg6 {[%clk 0:01:52]} 15. Nb5 {[%clk 0:02:16]}  Qb6 {[%clk 0:01:49]} 16. Be3 {[%clk 0:02:03]}  Qa5 {[%clk 0:01:49]} 17. a3 {[%clk 0:01:56]}  a6 {[%clk 0:01:44]} 18. b4 {[%clk 0:01:52]}  Qd8 {[%clk 0:01:44]} 19. Qxd8+ {[%clk 0:01:27]}  Rxd8 {[%clk 0:01:36]} 20. Nc3 {[%clk 0:01:27]}  Nd4 {[%clk 0:01:28]} 21. Bxd4 {[%clk 0:01:04]}  Rxd4 {[%clk 0:01:27]} 22. c5 {[%clk 0:01:04]}  b6 {[%clk 0:01:12]} 23. cxb6 {[%clk 0:01:01]}  Rxb6 {[%clk 0:01:12]} 24. Rad1 {[%clk 0:00:55]}  Rc4 {[%clk 0:01:08]} 25. Nd5 {[%clk 0:00:48]}  Nxd5 {[%clk 0:01:05]} 26. Rxd5 {[%clk 0:00:48]}  Rc2 {[%clk 0:01:04]} 27. e3 {[%clk 0:00:46]}  Ra2 {[%clk 0:01:01]} 28. Ra5 {[%clk 0:00:45]}  Rd6 {[%clk 0:01:00]} 29. h3 {[%clk 0:00:44]}  f5 {[%clk 0:00:40]} 30. g4 {[%clk 0:00:38]}  fxg4 {[%clk 0:00:19]} 31. hxg4 {[%clk 0:00:37]}  Rf6 {[%clk 0:00:20]} 32. g5 {[%clk 0:00:24]}  hxg5 {[%clk 0:00:20]} 33. Rxg5 {[%clk 0:00:23]}  Rxa3 {[%clk 0:00:20]} 34. Rg4 {[%clk 0:00:23]}  Bf5 {[%clk 0:00:18]} 35. Rg3 {[%clk 0:00:17]}  Rb3 {[%clk 0:00:17]} 36. Rc1 {[%clk 0:00:13]}  Rxb4 {[%clk 0:00:16]} 37. Bf1 {[%clk 0:00:13]}  Rbb6 {[%clk 0:00:12]} 38. Rc7 {[%clk 0:00:12]}  Rg6 {[%clk 0:00:12]} 39. Bc4+ {[%clk 0:00:12]}  Kh7 {[%clk 0:00:11]} 40. Rxg6 {[%clk 0:00:11]}  Rxg6+ {[%clk 0:00:10]} 41. Kf1 {[%clk 0:00:11]}  Rf6 {[%clk 0:00:10]} 42. Ke1 {[%clk 0:00:11]}  Kh6 {[%clk 0:00:07]} 43. Ra7 {[%clk 0:00:11]}  Bc8 {[%clk 0:00:07]} 44. Bd5 {[%clk 0:00:10]}  Bf5 {[%clk 0:00:04]} 45. Bc4 {[%clk 0:00:09]}  g5 {[%clk 0:00:03]} 46. Rxa6 {[%clk 0:00:08]}  Rxa6 {[%clk 0:00:03]} 47. Bxa6 {[%clk 0:00:08]}  Kh5 {[%clk 0:00:03]} 48. Bb7 {[%clk 0:00:08]}  Kh4 {[%clk 0:00:03]} 49. Bc6 {[%clk 0:00:09]}  Kh3 {[%clk 0:00:03]} 50. Bb7 {[%clk 0:00:09]}  Kg2 {[%clk 0:00:02]} 51. Bc6 {[%clk 0:00:09]}  g4 {[%clk 0:00:03]} 52. Bb7 {[%clk 0:00:09]}  g3 {[%clk 0:00:03]} 53. fxg3 {[%clk 0:00:08]}  Kxg3 {[%clk 0:00:04]} 54. Kd2 {[%clk 0:00:08]}  Kf2 {[%clk 0:00:04]} 55. Bxe4 {[%clk 0:00:08]}  Bxe4 {[%clk 0:00:04]} 56. Kc3 {[%clk 0:00:07]}  Ba8 {[%clk 0:00:03]} 57. Kd4 {[%clk 0:00:07]}  Kf3 {[%clk 0:00:04]} 58. e4 {[%clk 0:00:07]}  Bxe4 {[%clk 0:00:05]} 1/2-1/2


[Site "https://www.chess.com"]

[Event "Titled Tuesday Blitz January 18 2022"]
[White "Klimkowski, Jan"]
[Black "Rozhkov, Viacheslav"]
[WhiteFideId "21856222"]
[BlackFideId "4181484"]
[WhiteElo "2172"]
[BlackElo "2324"]
[Result "1-0"]
[Round "04"]
[TimeControl "180+1"]
[Date "2022.01.18"]
[WhiteClock "0:00:34"]
[BlackClock "0:00:40"]

1. e4 {[%clk 0:02:51]}  c5 {[%clk 0:02:59]} 2. Nf3 {[%clk 0:02:51]}  d6 {[%clk 0:02:59]} 3. d4 {[%clk 0:02:50]}  cxd4 {[%clk 0:03:00]} 4. Nxd4 {[%clk 0:02:51]}  Nf6 {[%clk 0:03:00]} 5. Nc3 {[%clk 0:02:50]}  Nc6 {[%clk 0:03:01]} 6. Bg5 {[%clk 0:02:48]}  Bd7 {[%clk 0:03:01]} 7. Qd2 {[%clk 0:02:45]}  Rc8 {[%clk 0:03:00]} 8. O-O-O {[%clk 0:02:45]}  Nxd4 {[%clk 0:03:01]} 9. Qxd4 {[%clk 0:02:45]}  Qa5 {[%clk 0:03:01]} 10. f4 {[%clk 0:02:37]}  e5 {[%clk 0:03:00]} 11. Qd2 {[%clk 0:02:36]}  Rxc3 {[%clk 0:02:42]} 12. Qxc3 {[%clk 0:02:15]}  Qxa2 {[%clk 0:02:41]} 13. Bxf6 {[%clk 0:02:13]}  gxf6 {[%clk 0:02:37]} 14. Bc4 {[%clk 0:02:13]}  Qa1+ {[%clk 0:02:13]} 15. Kd2 {[%clk 0:02:13]}  Qa4 {[%clk 0:02:13]} 16. Ra1 {[%clk 0:02:04]}  Qc6 {[%clk 0:02:11]} 17. Bd5 {[%clk 0:02:04]}  Qb6 {[%clk 0:01:58]} 18. Qe3 {[%clk 0:01:59]}  Qb4+ {[%clk 0:01:43]} 19. Qc3 {[%clk 0:01:42]}  Qb6 {[%clk 0:01:43]} 20. Qe3 {[%clk 0:01:05]}  Qb4+ {[%clk 0:01:42]} 21. Kc1 {[%clk 0:01:05]}  Bh6 {[%clk 0:01:37]} 22. g3 {[%clk 0:01:06]}  a6 {[%clk 0:01:32]} 23. c3 {[%clk 0:00:57]}  Qb5 {[%clk 0:01:28]} 24. Kc2 {[%clk 0:00:56]}  O-O {[%clk 0:01:24]} 25. b4 {[%clk 0:00:45]}  Rc8 {[%clk 0:01:22]} 26. Kb2 {[%clk 0:00:44]}  Be6 {[%clk 0:01:11]} 27. Ra5 {[%clk 0:00:41]}  Qd7 {[%clk 0:01:11]} 28. Qd3 {[%clk 0:00:40]}  Bg7 {[%clk 0:01:01]} 29. f5 {[%clk 0:00:39]}  Bxd5 {[%clk 0:01:01]} 30. Rxd5 {[%clk 0:00:40]}  Bf8 {[%clk 0:00:58]} 31. g4 {[%clk 0:00:40]}  b5 {[%clk 0:00:52]} 32. h4 {[%clk 0:00:36]}  Rc4 {[%clk 0:00:52]} 33. g5 {[%clk 0:00:36]}  a5 {[%clk 0:00:43]} 34. gxf6 {[%clk 0:00:34]}  axb4 {[%clk 0:00:43]} 35. Rg1+ {[%clk 0:00:34]}  Kh8 {[%clk 0:00:43]} 36. Qg3 {[%clk 0:00:34]}  bxc3+ {[%clk 0:00:40]} 37. Kc2 {[%clk 0:00:34]} 1-0


[Site "https://www.chess.com"]

[Event "Titled Tuesday Blitz January 18 2022"]
[White "Klukin, Kirill"]
[Black "Bodi, Tibor"]
[WhiteFideId "24199273"]
[BlackFideId "701084"]
[WhiteElo "2324"]
[BlackElo "2243"]
[Result "1-0"]
[Round "04"]
[TimeControl "180+1"]
[Date "2022.01.18"]
[WhiteClock "0:01:58"]
[BlackClock "0:01:02"]

1. e4 {[%clk 0:03:00]}  e6 {[%clk 0:03:00]} 2. Nf3 {[%clk 0:02:55]}  b6 {[%clk 0:03:01]} 3. d4 {[%clk 0:02:54]}  Bb7 {[%clk 0:03:02]} 4. Bd3 {[%clk 0:02:55]}  c5 {[%clk 0:02:59]} 5. c3 {[%clk 0:02:54]}  d5 {[%clk 0:02:57]} 6. e5 {[%clk 0:02:52]}  g6 {[%clk 0:02:52]} 7. O-O {[%clk 0:02:51]}  Bg7 {[%clk 0:02:51]} 8. Bg5 {[%clk 0:02:51]}  Ne7 {[%clk 0:02:52]} 9. Re1 {[%clk 0:02:47]}  h6 {[%clk 0:02:49]} 10. Bf6 {[%clk 0:02:32]}  Bxf6 {[%clk 0:02:31]} 11. exf6 {[%clk 0:02:33]}  Ng8 {[%clk 0:02:24]} 12. Bxg6 {[%clk 0:02:16]}  fxg6 {[%clk 0:02:08]} 13. Rxe6+ {[%clk 0:02:12]}  Kf7 {[%clk 0:02:08]} 14. Ne5+ {[%clk 0:02:10]}  Kxe6 {[%clk 0:01:40]} 15. Qg4+ {[%clk 0:02:08]}  Kxf6 {[%clk 0:01:26]} 16. Qxg6+ {[%clk 0:02:08]}  Ke7 {[%clk 0:01:23]} 17. Qg7+ {[%clk 0:02:02]}  Kd6 {[%clk 0:01:23]} 18. Nf7+ {[%clk 0:02:02]}  Ke7 {[%clk 0:01:07]} 19. Nxd8+ {[%clk 0:02:00]}  Kxd8 {[%clk 0:01:05]} 20. Qxh8 {[%clk 0:02:00]}  Nd7 {[%clk 0:01:04]} 21. Qxg8+ {[%clk 0:02:00]}  Kc7 {[%clk 0:01:05]} 22. Qg3+ {[%clk 0:01:59]}  Kc6 {[%clk 0:01:04]} 23. Nd2 {[%clk 0:01:59]}  Re8 {[%clk 0:01:02]} 24. Nf3 {[%clk 0:01:59]}  Nf6 {[%clk 0:01:01]} 25. Ne5+ {[%clk 0:01:59]}  Kb5 {[%clk 0:01:02]} 26. a4+ {[%clk 0:01:58]}  Ka5 {[%clk 0:01:02]} 27. Qg7 {[%clk 0:01:58]} 1-0


[Site "https://www.chess.com"]

[Event "Titled Tuesday Blitz January 18 2022"]
[White "Korchmar, Vasiliy"]
[Black "Weishaeutel, Moritz"]
[WhiteFideId "24131750"]
[BlackFideId "12967300"]
[WhiteElo "2370"]
[BlackElo "2002"]
[Result "1-0"]
[Round "04"]
[TimeControl "180+1"]
[Date "2022.01.18"]
[WhiteClock "0:00:44"]
[BlackClock "0:00:02"]

1. d4 {[%clk 0:03:00]}  Nf6 {[%clk 0:02:59]} 2. Bf4 {[%clk 0:03:00]}  d5 {[%clk 0:02:57]} 3. e3 {[%clk 0:03:00]}  c5 {[%clk 0:02:57]} 4. Nf3 {[%clk 0:03:00]}  Nc6 {[%clk 0:02:57]} 5. Nbd2 {[%clk 0:03:00]}  e6 {[%clk 0:02:57]} 6. c3 {[%clk 0:03:00]}  cxd4 {[%clk 0:02:57]} 7. exd4 {[%clk 0:02:59]}  Nh5 {[%clk 0:02:58]} 8. Bg3 {[%clk 0:02:59]}  Bd6 {[%clk 0:02:51]} 9. Bd3 {[%clk 0:02:56]}  Nf4 {[%clk 0:02:49]} 10. Bxf4 {[%clk 0:02:49]}  Bxf4 {[%clk 0:02:50]} 11. O-O {[%clk 0:02:49]}  O-O {[%clk 0:02:42]} 12. Re1 {[%clk 0:02:49]}  Qc7 {[%clk 0:02:38]} 13. Nf1 {[%clk 0:02:49]}  g6 {[%clk 0:02:32]} 14. Ne3 {[%clk 0:02:48]}  Bd7 {[%clk 0:02:22]} 15. g3 {[%clk 0:02:48]}  Bh6 {[%clk 0:02:14]} 16. h4 {[%clk 0:02:47]}  Rae8 {[%clk 0:02:04]} 17. h5 {[%clk 0:02:46]}  Qd6 {[%clk 0:02:04]} 18. Ng4 {[%clk 0:02:44]}  Bg7 {[%clk 0:02:00]} 19. hxg6 {[%clk 0:02:38]}  hxg6 {[%clk 0:01:51]} 20. Kg2 {[%clk 0:02:38]}  e5 {[%clk 0:01:23]} 21. dxe5 {[%clk 0:02:39]}  Nxe5 {[%clk 0:01:24]} 22. Nfxe5 {[%clk 0:02:36]}  Bxe5 {[%clk 0:01:25]} 23. Rh1 {[%clk 0:02:14]}  Bc6 {[%clk 0:01:01]} 24. Nh6+ {[%clk 0:02:09]}  Kg7 {[%clk 0:01:01]} 25. Qg4 {[%clk 0:02:07]}  d4+ {[%clk 0:00:59]} 26. f3 {[%clk 0:02:08]}  Bd7 {[%clk 0:00:56]} 27. Bf5 {[%clk 0:01:52]}  Re7 {[%clk 0:00:43]} 28. Rad1 {[%clk 0:01:36]}  d3 {[%clk 0:00:29]} 29. Bxd7 {[%clk 0:00:52]}  Qxd7 {[%clk 0:00:28]} 30. Qh4 {[%clk 0:00:53]}  Rfe8 {[%clk 0:00:06]} 31. Ng4 {[%clk 0:00:51]}  Kf8 {[%clk 0:00:02]} 32. Nxe5 {[%clk 0:00:43]}  Rxe5 {[%clk 0:00:02]} 33. Qh8+ {[%clk 0:00:44]} 1-0


[Site "https://www.chess.com"]